bitfinex/quotes_ETHUSD_20250414
["timestamp","ask_amount","ask_price","bid_price","bid_amount"]
[1744614075928,5.74567,1621.5,1621.1,9.91956]
[1744614076443,5.74567,1621.5,1621.2,4.9346]
[1744614076641,0.8118,1621.5,1621.2,9.86908]
[1744614077053,0.8118,1621.5,1621.3,4.93417]
[1744614077271,4.93313,1621.7,1621.4,4.9338]
[1744614077272,0.8048,1621.7,1621.4,4.9338]
[1744614077432,0.8048,1621.7,1621.4,9.86766]
[1744614077965,0.8048,1621.7,1621.5,4.93368]
[1744614078327,0.8048,1621.9,1621.7,4.93299]
[1744614078527,10.76621552,1622.0,1621.8,4.93279]
[1744614079473,10.76621552,1622.0,1621.7,4.93298]
[1744614080568,15.69849552,1622.0,1621.6,8.10442234]
[1744614080768,20.63086552,1622.0,1621.6,4.93326]
[1744614081073,4.93249,1621.9,1621.6,4.93326]
[1744614082131,15.69849552,1622.0,1621.6,4.93326]
[1744614082344,9.50349552,1622.0,1621.6,4.93326]
[1744614082825,14.43586552,1622.0,1621.6,4.93326]
[1744614083152,4.93248,1621.9,1621.6,4.93326]
[1744614083471,9.86524,1621.9,1621.5,5.72089]
[1744614083669,4.93248,1621.9,1621.5,9.86724]
[1744614083844,0.7724,1621.8,1621.5,4.93355]
[1744614084045,0.7724,1621.8,1621.5,5.9203]
[1744614084564,0.7724,1621.8,1621.6,4.93338]
[1744614085845,0.7724,1621.8,1621.6,4.93327]
[1744614086165,0.7724,1621.8,1621.7,4.93309]
[1744614086468,5.34361552,1622.0,1621.7,4.93309]
[1744614087045,5.34361552,1622.0,1621.7,4.93296]
[1744614087538,10.27587552,1622.0,1621.7,4.93296]
[1744614087739,10.27587552,1622.0,1621.6,10.6372]
[1744614087938,15.20824552,1622.0,1621.6,5.70385]
[1744614088156,15.20824552,1622.0,1621.6,4.93335]
[1744614088157,4.93252,1621.9,1621.6,4.93335]
[1744614089074,4.93252,1621.9,1621.5,4.93367]
[1744614089374,4.93252,1621.9,1621.5,11.59602155]
[1744614089975,10.27587552,1622.0,1621.6,4.93329]
[1744614090134,10.27587552,1622.0,1621.6,9.86657]
[1744614090334,10.27587552,1622.0,1621.7,4.93308]
[1744614090756,4.9326,1621.9,1621.5,6.66232155]
[1744614090953,10.27583552,1622.0,1621.4,5.70447]
[1744614090954,5.70529,1621.8,1621.4,5.70447]
[1744614091164,10.63828,1621.8,1621.4,5.70447]
[1744614091941,5.70529,1621.8,1621.4,10.63835]
[1744614092326,0.7724,1621.8,1621.1,10.29321255]
[1744614092450,0.7724,1621.5,1621.2,4.93459]
[1744614092782,10.64021,1621.5,1621.1,4.98486]
[1744614093080,4.93453,1621.3,1621.1,0.05]
[1744614093248,5.70701,1621.2,1621.1,0.05]
[1744614093656,0.7724,1621.2,1621.1,0.05]
[1744614095488,6.277683,1621.2,1621.1,0.05]
[1744614096380,1.343073,1621.2,1621.1,0.05]
[1744614096591,0.7724,1621.2,1621.1,0.05]
[1744614098248,5.70701,1621.2,1621.1,0.05]
[1744614099878,8.70701,1621.2,1621.1,0.05]
[1744614100579,9.25701,1621.2,1621.1,0.05]
[1744614102082,13.82822552,1621.2,1621.1,0.05]
[1744614102284,5.70754,1620.6,1620.5,0.4058297]
[1744614102507,11.90354,1620.6,1620.5,0.4058297]
[1744614102667,14.90354,1620.6,1620.5,0.4058297]
[1744614103008,15.45354,1620.6,1620.5,0.4058297]
[1744614103364,14.90354,1620.6,1620.5,0.4058297]
[1744614104008,9.9671,1620.6,1620.5,0.4058297]
[1744614104159,3.7711,1620.6,1620.5,0.4058297]
[1744614104358,5.70754,1620.6,1620.5,0.4058297]
[1744614107110,0.7711,1620.6,1620.5,0.4058297]
[1744614107424,5.70754,1620.6,1620.5,0.4058297]
[1744614108718,5.70754,1620.6,1620.5,0.38019277]
[1744614109523,9.25754,1620.6,1620.5,0.38019277]
[1744614109685,13.82875552,1620.6,1620.5,0.38019277]
[1744614110016,13.82875552,1620.6,1620.1,0.05]
[1744614110017,6.25876,1620.2,1620.1,0.05]
[1744614110192,20.02897552,1620.2,1620.1,0.05]
[1744614111403,23.31230904,1620.2,1620.1,0.05]
[1744614111618,5.71,1619.8,1619.5,3.63186133]
[1744614111852,11.90853,1620.0,1619.6,4.93933]
[1744614112220,6.9701,1620.0,1619.5,4.39206133]
[1744614112405,4.93944,1619.7,1619.5,3.63186133]
[1744614112613,9.87888,1619.7,1619.5,3.63186133]
[1744614112803,4.93949,1619.6,1619.5,3.63186133]
[1744614113049,4.93944,1619.7,1619.5,3.63186133]
[1744614113226,5.37461552,1619.6,1619.5,3.63186133]
[1744614113758,4.57121552,1619.6,1619.5,3.63186133]
[1744614113937,4.57121552,1619.6,1619.5,8.57165133]
[1744614114248,4.57121552,1619.6,1619.5,3.63186133]
[1744614114613,4.57121552,1619.6,1619.5,8.57165133]
[1744614115231,4.57121552,1619.6,1619.5,3.63186133]
[1744614115429,4.57121552,1619.6,1619.5,8.57165133]
[1744614115716,4.57121552,1619.6,1619.5,3.63186133]
[1744614116548,4.93846,1620.0,1619.5,4.45176133]
[1744614116716,4.93868,1619.9,1619.5,9.39136133]
[1744614117102,4.93889,1619.8,1619.5,4.45176133]
[1744614117454,12.206654,1619.9,1619.5,9.39153133]
[1744614117621,7.268054,1619.9,1619.6,4.93947]
[1744614118342,12.206654,1619.9,1619.6,4.93947]
[1744614118543,7.268054,1619.9,1619.6,4.93935]
[1744614118856,3.0,1620.1,1619.8,4.93876]
[1744614119018,4.93796,1620.1,1619.8,4.93876]
[1744614119366,7.93796,1620.1,1619.8,4.93876]
[1744614119674,4.57121552,1620.3,1620.0,4.93818]
[1744614119832,4.57121552,1620.3,1620.2,4.93766]
[1744614120035,6.201,1620.5,1620.3,4.93714]
[1744614120221,6.201,1620.5,1620.2,5.75751]
[1744614120418,6.201,1620.5,1620.3,4.93725]
[1744614120616,8.73956,1620.7,1620.2,0.8199]
[1744614120617,0.8034,1620.7,1620.4,4.93705]
[1744614120816,10.77221552,1620.8,1620.5,4.93661]
[1744614121042,10.77221552,1620.8,1620.5,9.87321]
[1744614121539,10.77221552,1620.8,1620.5,9.87317]
[1744614122033,10.77221552,1620.8,1620.5,4.93657]
[1744614122210,4.57121552,1620.8,1620.6,5.75631]
[1744614122414,4.57121552,1620.8,1620.6,10.69258]
[1744614122622,4.57121552,1620.8,1620.6,0.8199]
[1744614122828,10.45785507,1620.8,1620.4,10.69396]
[1744614123013,5.52189507,1620.8,1620.5,4.93673]
[1744614124445,5.52189507,1620.8,1620.6,4.93642]
[1744614124612,4.57121552,1620.8,1620.6,4.93642]
[1744614125238,4.57121552,1620.8,1620.5,4.93673]
[1744614126541,4.57121552,1620.8,1620.5,9.87332]
[1744614126742,4.57121552,1620.8,1620.6,4.93633]
[1744614127746,4.57121552,1620.8,1620.4,5.75684]
[1744614127747,9.50707552,1620.8,1620.4,5.75684]
[1744614128315,4.57121552,1620.8,1620.5,4.93658]
[1744614128515,4.57121552,1620.8,1620.5,9.87316]
[1744614128846,4.57121552,1620.8,1620.5,4.93658]
[1744614129051,4.57121552,1620.8,1620.6,4.93642]
[1744614130246,4.57121552,1620.8,1620.5,4.93658]
[1744614130442,14.44324552,1620.8,1620.4,8.93157714]
[1744614130647,9.50722552,1620.8,1620.4,13.86859714]
[1744614130859,9.50722552,1620.8,1620.4,8.93143714]
[1744614131032,4.57121552,1620.8,1620.5,4.93672]
[1744614131225,4.57121552,1620.8,1620.6,4.93644]
[1744614131655,4.57121552,1620.8,1620.5,4.93658]
[1744614131836,10.45775207,1620.8,1620.5,4.93658]
[1744614132034,5.73615,1620.7,1620.4,0.8199]
[1744614132263,4.93669,1620.6,1620.2,5.76312]
[1744614132476,6.56388,1620.7,1620.3,4.93719]
[1744614132679,4.93654,1620.6,1620.2,10.70068]
[1744614132876,4.93715,1620.4,1620.0,10.70196]
[1744614133059,5.76485,1620.4,1620.0,5.7637]
[1744614133468,5.76485,1620.4,1619.8,16.94332]
[1744614133469,4.93777,1620.2,1619.8,16.94332]
[1744614133781,5.431777,1620.1,1619.8,5.76446]
[1744614134473,5.431777,1620.1,1619.8,0.8256]
[1744614134680,5.76625,1620.0,1619.6,4.93946]
[1744614134859,5.76625,1620.0,1619.6,9.87879]
[1744614135068,0.8277,1620.0,1619.7,4.93905]
[1744614135240,6.8857327,1620.0,1619.7,4.93905]
[1744614135652,1.9474627,1620.0,1619.7,9.87804]
[1744614135834,7.93769,1620.2,1619.8,4.93871]
[1744614136034,12.87558,1620.2,1619.8,5.76431]
[1744614136233,7.93769,1620.2,1619.8,10.70301]
[1744614136473,7.93769,1620.2,1619.8,5.7643]
[1744614136769,3.0,1620.2,1619.8,5.7643]
[1744614137071,7.93781,1620.2,1619.8,5.7643]
[1744614137273,7.93781,1620.2,1619.8,0.8256]
[1744614137475,4.93807,1620.1,1619.7,4.93914]
[1744614137680,4.93807,1620.1,1619.5,9.39718133]
[1744614137681,4.93859,1619.9,1619.5,9.39718133]
[1744614137883,5.432449,1619.9,1619.5,9.39718133]
[1744614138085,4.93923,1619.7,1619.5,3.63186133]
[1744614138261,5.76659,1619.8,1619.5,3.63186133]
[1744614138860,10.70566,1619.8,1619.5,3.63186133]
[1744614139262,5.76659,1619.8,1619.5,3.63186133]
[1744614139495,6.8864929,1619.8,1619.5,3.63186133]
[1744614139857,11.8255629,1619.8,1619.5,3.63186133]
[1744614140596,6.8864929,1619.8,1619.5,3.63186133]
[1744614141087,4.93929,1619.7,1619.5,3.63186133]
[1744614143003,9.51050552,1619.7,1619.5,3.63186133]
[1744614143155,9.39884871,1619.6,1619.5,3.63186133]
[1744614143498,9.39884871,1619.6,1619.1,0.05]
[1744614143499,8.76021,1619.2,1619.1,0.05]
[1744614143655,3.0,1619.2,1619.1,0.05]
[1744614144255,7.94071,1619.2,1619.1,0.05]
[1744614144560,3.0,1619.2,1619.1,0.05]
[1744614144787,6.242,1619.3,1619.1,0.05]
[1744614146188,4.94041,1619.3,1619.1,0.05]
[1744614146368,6.010415,1619.3,1619.1,0.05]
[1744614146569,1.070005,1619.3,1619.1,0.05]
[1744614147074,4.94014,1619.4,1619.1,0.05]
[1744614147692,4.94014,1619.4,1619.1,4.99101]
[1744614147896,4.94014,1619.4,1619.1,0.05]
[1744614148317,4.94044,1619.3,1619.1,0.05]
[1744614148506,9.88107,1619.3,1619.1,0.05]
[1744614148717,5.928547,1619.3,1619.1,0.05]
[1744614149013,0.988107,1619.3,1619.1,0.05]
[1744614149167,4.94041,1619.3,1619.1,0.05]
[1744614149873,4.94071,1619.2,1619.1,0.05]
[1744614150074,5.76021,1619.2,1619.1,0.05]
[1744614151700,19.30592552,1619.2,1619.1,0.05]
[1744614151895,20.12542552,1619.2,1619.1,0.05]
[1744614152312,4.9432,1618.4,1618.1,0.05]
[1744614152539,0.8195,1618.4,1618.1,0.05]
[1744614152692,4.94288,1618.5,1618.1,4.99387]
[1744614152897,4.94316,1618.4,1618.1,0.05]
[1744614153095,0.494316,1618.4,1618.1,4.99395]
[1744614153325,11.18673,1618.6,1618.2,4.94365]
[1744614153489,5.76174,1618.7,1618.2,4.94365]
[1744614153490,0.8195,1618.7,1618.4,4.94307]
[1744614153830,0.8195,1618.9,1618.7,4.94209]
[1744614154123,7.94136,1619.0,1618.6,5.7049]
[1744614154297,0.794136,1618.9,1618.6,0.7624]
[1744614154727,3.0,1619.0,1618.6,0.7624]
[1744614154904,10.81521552,1619.1,1618.8,4.94181]
[1744614155310,15.75623552,1619.1,1618.8,4.94181]
[1744614155492,10.81521552,1619.1,1618.6,8.22789653]
[1744614155697,4.57121552,1619.1,1619.0,4.94132]
[1744614156098,4.57121552,1619.1,1619.0,5.70372]
[1744614156335,5.75901,1619.6,1619.2,4.94066]
[1744614156697,10.69873,1619.6,1619.2,4.94066]
[1744614157331,0.8,1619.5,1619.2,4.94066]
[1744614157719,5.73981,1619.5,1619.1,4.94101]
[1744614158238,10.67982,1619.5,1619.1,4.94101]
[1744614158438,1.067982,1619.4,1619.1,4.94101]
[1744614158753,10.67982,1619.5,1619.1,4.94101]
[1744614158902,10.67982,1619.5,1619.0,5.70369]
[1744614158903,9.88048,1619.4,1619.0,5.70369]
[1744614159101,4.94043,1619.3,1619.0,5.70369]
[1744614159631,4.9401,1619.4,1619.1,4.941]
[1744614159840,4.9401,1619.4,1619.0,5.70369]
[1744614160042,6.008091,1619.4,1619.0,5.70369]
[1744614160850,6.008091,1619.4,1619.0,10.6449]
[1744614161032,6.008091,1619.4,1619.0,5.70361]
[1744614161348,0.8,1619.5,1619.1,4.94087]
[1744614161566,5.73996,1619.5,1619.1,4.94087]
[1744614161715,10.67997,1619.5,1619.1,4.94087]
[1744614164155,5.73996,1619.5,1619.1,4.94084]
[1744614164678,4.94011,1619.4,1619.1,4.94084]
[1744614164833,5.73996,1619.5,1619.1,9.88173]
[1744614165037,5.73996,1619.5,1619.1,4.94084]
[1744614165565,5.73996,1619.5,1619.2,4.94066]
[1744614165762,5.73996,1619.5,1619.1,4.94084]
[1744614165930,10.67997,1619.5,1619.1,4.94084]
[1744614166280,0.8,1619.5,1619.0,0.7624]
[1744614166466,0.8,1619.5,1619.0,5.70342]
[1744614166467,4.94031,1619.4,1619.0,5.70342]
[1744614166666,10.948644,1619.4,1619.0,5.70342]
[1744614166969,6.008324,1619.4,1619.0,5.70342]
[1744614167139,6.008324,1619.4,1619.0,10.64462]
[1744614167347,6.008324,1619.4,1619.0,5.70342]
[1744614167575,1.068014,1619.4,1619.0,5.70342]
[1744614167778,5.73993,1619.5,1619.1,4.94087]
[1744614168071,10.67991,1619.5,1619.1,4.94087]
[1744614168283,4.94011,1619.4,1619.1,4.94087]
[1744614171720,5.73993,1619.5,1619.1,9.88178]
[1744614172306,10.67989,1619.5,1619.1,4.94087]
[1744614172606,5.73993,1619.5,1619.1,4.94087]
[1744614173505,4.94013,1619.4,1619.1,4.94087]
[1744614173705,9.88039,1619.4,1619.0,5.70368]
[1744614173939,4.94013,1619.4,1619.0,10.64484]
[1744614174432,10.948438,1619.4,1619.0,5.70356]
[1744614174612,10.948438,1619.4,1619.0,0.7624]
[1744614174613,9.88114,1619.3,1619.0,0.7624]
[1744614175440,0.7921,1619.3,1618.7,15.18831504]
[1744614175739,9.51179552,1619.3,1618.9,3.18041504]
[1744614175936,4.57121552,1619.3,1619.0,4.94119]
[1744614176237,5.26707913,1619.3,1619.0,4.94132]
[1744614176436,4.57121552,1619.3,1619.1,5.76167]
[1744614176611,4.94011,1619.4,1619.1,5.76167]
[1744614176935,4.94011,1619.4,1619.0,4.94119]
[1744614177134,9.88046,1619.4,1619.0,4.94119]
[1744614177443,4.9405,1619.3,1619.0,4.94119]
[1744614177641,5.928561,1619.3,1618.9,13.88443504]
[1744614177938,5.928561,1619.3,1618.9,8.94270504]
[1744614178237,0.988061,1619.3,1619.0,4.94128]
[1744614178441,4.94026,1619.4,1619.0,4.94116]
[1744614178754,4.94026,1619.4,1619.0,9.88235]
[1744614179839,9.88053,1619.4,1619.0,4.94116]
[1744614180360,12.51073552,1619.6,1619.2,4.94065]
[1744614180564,4.93986,1619.5,1619.1,13.88313504]
[1744614180760,12.51073552,1619.6,1619.2,4.94058]
[1744614180899,4.94002,1619.5,1619.1,5.76166]
[1744614181105,4.94002,1619.5,1619.1,0.8208]
[1744614181307,9.88061,1619.4,1619.1,0.8208]
[1744614181505,4.94081,1619.2,1618.9,0.8208]
[1744614181931,0.988124,1619.2,1618.9,0.8208]
[1744614182141,4.94121,1619.1,1618.9,0.8208]
[1744614182331,9.88243,1619.1,1618.7,8.59704829]
[1744614182526,5.73331,1619.1,1618.7,14.35990829]
[1744614182731,4.94074,1619.2,1618.8,9.88365]
[1744614182732,5.73284,1619.2,1618.8,9.88365]
[1744614182934,4.94043,1619.3,1619.0,0.8208]
[1744614183134,4.94043,1619.3,1619.0,5.76201]
[1744614183351,4.94043,1619.3,1618.8,5.72512]
[1744614183557,4.94081,1619.2,1618.8,5.72512]
[1744614183849,4.94102,1619.1,1618.8,5.72512]
[1744614184050,10.945883,1619.1,1618.8,0.7832]
[1744614184244,4.94138,1619.0,1618.8,0.7832]
[1744614184457,6.004653,1619.1,1618.8,0.7832]
[1744614184618,1.063633,1619.1,1618.8,5.72501]
[1744614184948,4.94105,1619.1,1618.8,3.96361504]
[1744614185270,9.88231,1619.1,1618.8,0.7832]
[1744614185470,3.0,1619.3,1618.8,8.90543504]
[1744614185471,4.94075,1619.2,1618.8,8.90543504]
[1744614185778,4.94106,1619.1,1618.8,8.90543504]
[1744614186064,4.94106,1619.1,1618.8,0.7832]
[1744614186265,10.870432,1619.1,1618.8,0.7832]
[1744614186667,4.94134,1619.0,1618.8,0.7832]
[1744614187266,5.929242,1619.1,1618.8,5.72502]
[1744614187446,4.94106,1619.1,1618.8,5.72502]
[1744614187651,4.94106,1619.1,1618.8,0.7832]
[1744614188020,4.94076,1619.2,1618.9,4.94151]
[1744614188460,4.94076,1619.2,1618.8,8.90553504]
[1744614188461,11.23012,1619.4,1619.1,4.94094]
[1744614188766,9.8798,1619.5,1619.2,0.8282]
[1744614188969,0.98798,1619.4,1619.2,0.8282]
[1744614189267,4.93983,1619.5,1619.2,5.7689]
[1744614189450,4.93983,1619.5,1619.2,0.8282]
[1744614189653,9.88043,1619.4,1619.1,0.8282]
[1744614189869,5.71059,1619.3,1618.9,5.76981]
[1744614190085,10.65126,1619.3,1618.9,5.76981]
[1744614190256,6.775716,1619.3,1618.9,5.76981]
[1744614190580,4.94014,1619.4,1619.0,8.12158504]
[1744614190935,4.94014,1619.4,1619.1,4.9409]
[1744614191272,9.88042,1619.4,1619.0,4.94117]
[1744614191660,4.94014,1619.4,1619.0,4.94117]
[1744614191974,0.8,1619.3,1619.0,9.88237]
[1744614192273,0.8,1619.3,1619.0,4.94117]
[1744614193566,9.88043,1619.4,1619.0,4.94117]
[1744614193740,0.988043,1619.3,1619.0,4.94117]
[1744614193941,9.88041,1619.4,1619.0,4.94117]
[1744614194466,4.94014,1619.4,1619.0,9.88236]
[1744614194765,9.88041,1619.4,1619.0,4.94117]
[1744614194969,4.94014,1619.4,1619.0,4.94116]
[1744614195265,4.94014,1619.4,1619.0,9.88235]
[1744614195465,6.005134,1619.4,1619.0,9.88235]
[1744614195771,6.005134,1619.4,1619.0,4.94116]
[1744614195929,6.005134,1619.4,1619.1,4.94096]
[1744614196130,10.945394,1619.4,1619.0,4.94116]
[1744614196674,10.945414,1619.4,1619.0,4.94116]
[1744614197077,6.005134,1619.4,1619.0,4.94116]
[1744614197281,5.63931761,1619.3,1619.0,4.94116]
[1744614197482,0.69886761,1619.3,1619.0,4.94116]
[1744614197778,0.69886761,1619.3,1619.1,4.94095]
[1744614199547,4.94014,1619.4,1619.1,4.94095]
[1744614200041,5.70985,1619.5,1619.1,13.06222504]
[1744614200243,5.70985,1619.5,1619.2,4.94066]
[1744614200486,3.0,1619.5,1619.2,5.76876]
[1744614200667,9.51070552,1619.6,1619.2,5.76876]
[1744614200845,4.57121552,1619.6,1619.4,4.93995]
[1744614201049,4.9398,1619.5,1619.3,3.18041504]
[1744614201256,9.51093552,1619.6,1619.3,3.18041504]
[1744614201451,4.57121552,1619.6,1619.5,5.76799]
[1744614201653,4.939,1619.8,1619.5,0.8282]
[1744614202181,5.70861,1619.9,1619.5,5.76788]
[1744614202396,10.64739,1619.9,1619.5,5.76788]
[1744614202769,4.93888,1619.8,1619.5,5.76788]
[1744614203488,9.87795,1619.8,1619.5,0.8282]
[1744614203667,4.93888,1619.8,1619.5,0.8282]
[1744614204187,4.14159202,1620.0,1619.8,5.76364]
[1744614204859,4.14159202,1620.0,1619.8,0.825]
[1744614205886,4.14159202,1620.0,1619.9,4.93857]
[1744614206647,4.14159202,1620.0,1619.8,8.94400504]
[1744614206851,4.93767,1620.2,1619.8,8.94400504]
[1744614207689,4.93767,1620.2,1619.8,13.88271504]
[1744614207990,9.87555,1620.2,1619.8,8.94400504]
[1744614208487,4.93838,1620.0,1619.8,0.825]
[1744614208696,9.87683,1620.0,1619.8,0.825]
[1744614208893,4.93838,1620.0,1619.7,0.825]
[1744614209052,4.93838,1620.0,1619.7,5.76417]
[1744614209256,5.74438,1620.1,1619.7,10.70318]
[1744614209491,5.925225,1620.2,1619.8,8.11910504]
[1744614209693,4.93767,1620.2,1619.8,8.11910504]
[1744614209880,4.93797,1620.1,1619.8,8.11910504]
[1744614210459,4.93767,1620.2,1619.8,13.05781504]
[1744614210992,4.93806,1620.1,1619.8,8.11910504]
[1744614211293,4.93806,1620.1,1619.7,7.82582078]
[1744614211294,4.93837,1620.0,1619.7,0.825]
[1744614211499,4.93799,1620.1,1619.7,5.7639]
[1744614211907,4.93799,1620.1,1619.7,10.70291]
[1744614212963,9.87614,1620.1,1619.7,5.7639]
[1744614213395,4.93799,1620.1,1619.7,10.70291]
[1744614213698,9.87614,1620.1,1619.7,5.7639]
[1744614213897,10.9211915,1620.1,1619.7,5.7639]
[1744614214100,4.9383,1620.0,1619.7,5.7639]
[1744614214703,5.9830415,1620.1,1619.7,10.70294]
[1744614215110,10.9211715,1620.1,1619.7,5.7639]
[1744614216169,5.9830415,1620.1,1619.7,5.7639]
[1744614216368,5.9830415,1620.1,1619.8,4.93881]
[1744614216585,5.9830415,1620.1,1619.7,10.70298]
[1744614216993,10.9211715,1620.1,1619.7,5.7639]
[1744614217390,1.0450515,1620.1,1619.7,0.88673322]
[1744614217701,4.93741,1620.3,1619.9,0.7947]
[1744614217999,4.93746,1620.3,1620.0,8.11867504]
[1744614218870,9.87509,1620.3,1619.9,5.73322]
[1744614219070,4.93746,1620.3,1619.9,5.73322]
[1744614219270,9.87558,1620.2,1619.9,0.7947]
[1744614219604,5.925528,1620.1,1619.8,0.7991]
[1744614219790,4.93742,1620.3,1619.9,4.93851]
[1744614220119,9.87499,1620.3,1620.0,0.7991]
[1744614220512,4.93742,1620.3,1620.0,0.7991]
[1744614220803,4.93742,1620.3,1620.0,5.73735]
[1744614221113,4.93766,1620.2,1620.0,0.7991]
[1744614222916,4.93827,1620.0,1619.8,0.7991]
[1744614224785,4.93821,1620.1,1619.8,5.73788]
[1744614224985,5.71101,1620.2,1619.8,13.85707504]
[1744614225384,5.71101,1620.2,1619.8,8.91829504]
[1744614225580,4.93806,1620.1,1619.8,0.7991]
[1744614226008,4.93834,1620.0,1619.8,0.7991]
[1744614226321,4.93834,1620.0,1619.7,3.97951504]
[1744614226729,4.93834,1620.0,1619.7,8.91863504]
[1744614227730,4.93872,1619.9,1619.5,8.91929504]
[1744614227891,4.93898,1619.8,1619.5,8.91929504]
[1744614228094,4.93898,1619.8,1619.5,3.97951504]
[1744614228410,9.87807,1619.8,1619.5,3.97951504]
[1744614228818,4.93928,1619.7,1619.5,0.7991]
[1744614229191,4.93963,1619.6,1619.4,0.7991]
[1744614229394,9.87929,1619.6,1619.3,3.18041504]
[1744614229586,4.9398,1619.5,1619.1,8.92049504]
[1744614230834,4.94024,1619.4,1619.1,3.97951504]
[1744614231130,4.94024,1619.4,1619.1,8.92052504]
[1744614231828,4.9398,1619.5,1619.1,8.92052504]
[1744614232238,9.8798,1619.5,1619.1,8.92052504]
[1744614232528,4.9398,1619.5,1619.1,8.92037504]
[1744614232747,4.93956,1619.6,1619.3,3.18041504]
[1744614232896,4.93936,1619.7,1619.4,0.7991]
[1744614233238,9.51011552,1619.8,1619.4,5.73904]
[1744614233534,4.57121552,1619.8,1619.5,3.18041504]
[1744614233734,4.57121552,1619.8,1619.6,4.93948]
[1744614234037,4.57121552,1619.8,1619.5,8.12008504]
[1744614234038,9.51010552,1619.8,1619.5,8.12008504]
[1744614234194,4.57121552,1619.8,1619.5,8.12008504]
[1744614234530,11.27407713,1619.8,1619.5,3.18041504]
[1744614234693,9.51021552,1619.8,1619.5,3.18041504]
[1744614234892,4.93919,1619.7,1619.5,3.18041504]
[1744614235092,4.93919,1619.7,1619.4,0.7991]
[1744614235527,4.93919,1619.7,1619.4,5.73917]
[1744614235740,9.51021552,1619.8,1619.4,10.6791]
[1744614236107,14.44938552,1619.8,1619.4,5.73903]
[1744614237250,4.93923,1619.7,1619.4,0.7991]
[1744614238819,9.51021552,1619.8,1619.4,5.73905]
[1744614239067,4.57121552,1619.8,1619.6,0.8307]
[1744614239439,9.51013552,1619.8,1619.6,0.8307]
[1744614239824,9.51011552,1619.8,1619.6,0.8307]
[1744614240365,14.44916552,1619.8,1619.6,0.8307]
[1744614240826,9.51011552,1619.8,1619.6,0.8307]
[1744614241326,14.44916552,1619.8,1619.6,0.8307]
[1744614241553,4.93964,1619.6,1619.4,0.8307]
[1744614241932,9.87933,1619.6,1619.4,0.8307]
[1744614242138,4.93964,1619.6,1619.4,0.8307]
[1744614244872,5.7411,1619.7,1619.4,0.8307]
[1744614245044,4.57121552,1619.8,1619.6,8.11987504]
[1744614245231,4.57121552,1619.8,1619.7,0.8307]
[1744614245425,9.50887552,1620.2,1619.7,0.8307]
[1744614245631,4.57121552,1620.2,1619.9,5.76913]
[1744614245932,4.14159202,1620.4,1620.2,0.8307]
[1744614246235,4.14159202,1620.4,1620.2,8.94859504]
[1744614246432,4.14159202,1620.4,1620.3,4.93735]
[1744614246732,4.14159202,1620.4,1620.3,5.76805]
[1744614246927,4.14159202,1620.5,1620.3,12.7148945]
[1744614247171,4.14159202,1620.5,1620.4,4.01111504]
[1744614247738,9.07845202,1620.5,1620.2,4.01111504]
[1744614247931,4.14159202,1620.5,1620.2,4.01111504]
[1744614248178,4.93739,1620.3,1620.0,10.22011504]
[1744614248332,4.93739,1620.3,1620.0,4.01111504]
[1744614248736,4.93735,1620.4,1620.0,8.94934504]
[1744614249002,4.93735,1620.4,1620.0,15.27620154]
[1744614249148,9.07836202,1620.5,1620.1,9.87571]
[1744614249353,4.14159202,1620.5,1620.1,4.93778]
[1744614249567,9.07836202,1620.5,1620.1,4.93778]
[1744614250078,9.07836202,1620.5,1620.2,3.18041504]
[1744614250287,4.93677,1620.5,1620.2,3.18041504]
[1744614250657,4.93709,1620.4,1620.2,3.18041504]
[1744614250850,4.93709,1620.4,1620.0,10.33812154]
[1744614251391,4.93709,1620.4,1620.0,4.01111504]
[1744614251592,4.93736,1620.3,1620.0,4.01111504]
[1744614251944,4.93675,1620.5,1620.1,4.93778]
[1744614252383,4.93707,1620.4,1620.0,8.94935504]
[1744614252550,4.93707,1620.4,1620.0,8.94926504]
[1744614252763,4.93707,1620.4,1620.0,9.84419154]
[1744614252969,4.93707,1620.4,1620.1,4.93792]
[1744614253358,4.93741,1620.3,1620.0,4.90604154]
[1744614253878,4.93707,1620.4,1620.0,9.84429154]
[1744614254193,9.87432,1620.4,1620.0,9.84429154]
[1744614254354,4.93741,1620.3,1620.0,9.84429154]
[1744614255309,4.93707,1620.4,1620.0,9.84429154]
[1744614255959,4.93707,1620.4,1620.0,9.84414154]
[1744614256385,4.93707,1620.4,1620.0,14.78229154]
[1744614256691,4.93707,1620.4,1620.0,9.84414154]
[1744614256865,4.93746,1620.3,1620.0,4.90604154]
[1744614257484,4.93746,1620.3,1620.0,4.01111504]
[1744614257693,10.62522,1620.3,1620.0,4.01111504]
[1744614260493,4.93921,1619.7,1619.3,6.58605526]
[1744614260690,9.87858,1619.7,1619.3,6.58605526]
[1744614261084,4.93951,1619.6,1619.3,6.58605526]
[1744614262070,4.93951,1619.6,1619.3,1.64568526]
[1744614262271,4.93981,1619.5,1619.3,0.7807]
[1744614262483,4.93981,1619.5,1619.2,3.18041504]
[1744614262790,4.93979,1619.5,1619.2,8.12111504]
[1744614263195,4.93979,1619.5,1619.2,3.18041504]
[1744614264897,4.93979,1619.5,1619.2,8.12105504]
[1744614266024,10.62948,1619.6,1619.2,9.55100306]
[1744614266514,4.93951,1619.6,1619.2,14.49160306]
[1744614266670,4.93918,1619.7,1619.3,10.68126]
[1744614266867,0.8145,1619.8,1619.4,3.18041504]
[1744614267071,20.65157552,1619.9,1619.5,5.74024]
[1744614267298,4.93859,1619.9,1619.6,3.18041504]
[1744614267521,4.93801,1620.1,1619.7,0.8006]
[1744614267674,4.93801,1620.1,1619.7,5.73967]
[1744614267875,9.87623,1620.1,1619.7,5.73967]
[1744614268602,4.93801,1620.1,1619.7,10.67868]
[1744614268801,0.8145,1620.2,1619.8,8.11929504]